[Event "December 5 Late 2023"]
[Site "https://www.chess.com"]
[Date "2023.12.05"]
[Round "11"]
[White "DCacheiro"]
[Black "Brodsky, David"]
[Result "0-1"]
[Board "24"]
[TimeControl "180+1"]
[BlackFideId "2073250"]
[WhiteElo "2552"]
[BlackElo "2788"]
[BlackTeam "USA"]
[WhiteClock "0:00:00"]
[BlackClock "0:00:06"]

1. e4 {[%clk 0:03:00]}  e5 {[%clk 0:02:58]} 2. Nf3 {[%clk 0:03:01]}  Nc6 {[%clk 0:02:59]} 3. Bb5 {[%clk 0:03:01]}  a6 {[%clk 0:02:57]} 4. Ba4 {[%clk 0:03:02]}  Nf6 {[%clk 0:02:57]} 5. O-O {[%clk 0:03:02]}  Bc5 {[%clk 0:02:56]} 6. c3 {[%clk 0:02:59]}  b5 {[%clk 0:02:56]} 7. Bb3 {[%clk 0:02:59]}  d6 {[%clk 0:02:56]} 8. a4 {[%clk 0:02:57]}  Ba7 {[%clk 0:02:50]} 9. d4 {[%clk 0:02:47]}  h6 {[%clk 0:02:45]} 10. Re1 {[%clk 0:02:41]}  Bg4 {[%clk 0:02:29]} 11. d5 {[%clk 0:02:28]}  Ne7 {[%clk 0:02:25]} 12. h3 {[%clk 0:02:24]}  Bd7 {[%clk 0:02:12]} 13. Be3 {[%clk 0:02:14]}  Bxe3 {[%clk 0:02:08]} 14. Rxe3 {[%clk 0:02:15]}  O-O {[%clk 0:02:08]} 15. Nbd2 {[%clk 0:02:13]}  Ng6 {[%clk 0:02:05]} 16. c4 {[%clk 0:02:04]}  Qb8 {[%clk 0:01:35]} 17. cxb5 {[%clk 0:01:58]}  axb5 {[%clk 0:01:35]} 18. a5 {[%clk 0:01:57]}  c6 {[%clk 0:01:35]} 19. dxc6 {[%clk 0:01:50]}  Bxc6 {[%clk 0:01:36]} 20. Ba2 {[%clk 0:01:41]}  Qb7 {[%clk 0:01:27]} 21. b4 {[%clk 0:01:22]}  Rfd8 {[%clk 0:01:17]} 22. Qe1 {[%clk 0:01:15]}  d5 {[%clk 0:01:09]} 23. exd5 {[%clk 0:01:09]}  Bxd5 {[%clk 0:00:52]} 24. Nxe5 {[%clk 0:00:56]}  Nf4 {[%clk 0:00:48]} 25. Rg3 {[%clk 0:00:30]}  Bxa2 {[%clk 0:00:39]} 26. Rxa2 {[%clk 0:00:31]}  Qd5 {[%clk 0:00:39]} 27. Rc2 {[%clk 0:00:13]}  Rac8 {[%clk 0:00:38]} 28. Rxc8 {[%clk 0:00:12]}  Rxc8 {[%clk 0:00:39]} 29. Qe3 {[%clk 0:00:09]}  N4h5 {[%clk 0:00:29]} 30. Rf3 {[%clk 0:00:09]}  Re8 {[%clk 0:00:28]} 31. Rf5 {[%clk 0:00:07]}  g6 {[%clk 0:00:16]} 32. Rxf6 {[%clk 0:00:08]}  Nxf6 {[%clk 0:00:16]} 33. Nd7 {[%clk 0:00:08]}  Qxd7 {[%clk 0:00:15]} 34. Qc3 {[%clk 0:00:07]}  Ne4 {[%clk 0:00:12]} 35. Nxe4 {[%clk 0:00:06]}  Rxe4 {[%clk 0:00:13]} 36. a6 {[%clk 0:00:06]}  Rc4 {[%clk 0:00:11]} 37. Qe3 {[%clk 0:00:05]}  Rc8 {[%clk 0:00:08]} 38. Qb6 {[%clk 0:00:04]}  Ra8 {[%clk 0:00:08]} 39. g3 {[%clk 0:00:02]}  Qa7 {[%clk 0:00:08]} 40. Qxb5 {[%clk 0:00:02]}  Qxa6 {[%clk 0:00:08]} 41. Qc5 {[%clk 0:00:03]}  Rc8 {[%clk 0:00:06]} 42. Qd4 {[%clk 0:00:03]}  Qb5 {[%clk 0:00:06]} 43. Qf4 {[%clk 0:00:02]}  h5 {[%clk 0:00:05]} 44. Qh4 {[%clk 0:00:02]}  Rc4 {[%clk 0:00:05]} 45. Qd8+ {[%clk 0:00:02]}  Kg7 {[%clk 0:00:06]} 46. Qd2 {[%clk 0:00:01]}  Qxb4 {[%clk 0:00:06]} 47. Qe3 {[%clk 0:00:02]}  Qc3 {[%clk 0:00:05]} 48. Qb6 {[%clk 0:00:02]}  Qc1+ {[%clk 0:00:05]} 49. Kg2 {[%clk 0:00:02]}  Qc2 {[%clk 0:00:06]} 50. Qd6 {[%clk 0:00:02]}  Qe4+ {[%clk 0:00:06]} 51. Kh2 {[%clk 0:00:00]}  Rc1 {[%clk 0:00:06]} 0-1

[Event "December 5 Late 2023"]
[Site "https://www.chess.com"]
[Date "2023.12.05"]
[Round "11"]
[White "Rosen, Eric"]
[Black "Cervantes Landeiro, Thalia"]
[Result "1/2-1/2"]
[Board "32"]
[TimeControl "180+1"]
[WhiteFideId "2032562"]
[BlackFideId "3520498"]
[WhiteElo "2688"]
[BlackElo "2550"]
[WhiteTeam "USA"]
[BlackTeam "USA"]
[WhiteClock "0:00:06"]
[BlackClock "0:00:09"]

1. e4 {[%clk 0:03:00]}  c5 {[%clk 0:02:58]} 2. Nc3 {[%clk 0:02:59]}  d6 {[%clk 0:02:58]} 3. f4 {[%clk 0:02:59]}  Nc6 {[%clk 0:02:58]} 4. Nf3 {[%clk 0:02:59]}  g6 {[%clk 0:02:55]} 5. Bc4 {[%clk 0:03:00]}  Bg7 {[%clk 0:02:55]} 6. O-O {[%clk 0:02:58]}  e6 {[%clk 0:02:55]} 7. d4 {[%clk 0:02:58]}  cxd4 {[%clk 0:02:54]} 8. Nb5 {[%clk 0:02:58]}  Nge7 {[%clk 0:02:46]} 9. Bb3 {[%clk 0:02:58]}  O-O {[%clk 0:02:40]} 10. Nbxd4 {[%clk 0:02:58]}  Na5 {[%clk 0:02:38]} 11. Ba4 {[%clk 0:02:50]}  Bd7 {[%clk 0:02:30]} 12. c3 {[%clk 0:02:35]}  a6 {[%clk 0:02:07]} 13. Bc2 {[%clk 0:02:29]}  Qc7 {[%clk 0:01:58]} 14. Kh1 {[%clk 0:02:26]}  b5 {[%clk 0:01:57]} 15. Bd3 {[%clk 0:02:19]}  Nc4 {[%clk 0:01:53]} 16. Qe2 {[%clk 0:02:15]}  Rac8 {[%clk 0:01:35]} 17. Nc2 {[%clk 0:01:39]}  Rfe8 {[%clk 0:01:21]} 18. Ne3 {[%clk 0:01:37]}  f5 {[%clk 0:01:12]} 19. Nxc4 {[%clk 0:01:34]}  bxc4 {[%clk 0:01:12]} 20. Bc2 {[%clk 0:01:34]}  fxe4 {[%clk 0:01:09]} 21. Qxe4 {[%clk 0:01:32]}  d5 {[%clk 0:01:08]} 22. Qe2 {[%clk 0:01:30]}  Nc6 {[%clk 0:00:40]} 23. Be3 {[%clk 0:01:29]}  e5 {[%clk 0:00:39]} 24. fxe5 {[%clk 0:01:29]}  Nxe5 {[%clk 0:00:39]} 25. Nxe5 {[%clk 0:01:24]}  Qxe5 {[%clk 0:00:35]} 26. Rae1 {[%clk 0:01:13]}  Bh6 {[%clk 0:00:31]} 27. Qf2 {[%clk 0:00:30]}  Rf8 {[%clk 0:00:14]} 28. Bd4 {[%clk 0:00:30]}  Rxf2 {[%clk 0:00:10]} 29. Bxf2 {[%clk 0:00:11]}  Qd6 {[%clk 0:00:05]} 30. Bg3 {[%clk 0:00:11]}  Qc6 {[%clk 0:00:05]} 31. Be5 {[%clk 0:00:04]}  Re8 {[%clk 0:00:05]} 32. Re2 {[%clk 0:00:03]}  Bg7 {[%clk 0:00:05]} 33. Rfe1 {[%clk 0:00:02]}  Bxe5 {[%clk 0:00:06]} 34. Rxe5 {[%clk 0:00:03]}  Rxe5 {[%clk 0:00:06]} 35. Rxe5 {[%clk 0:00:04]}  Qf6 {[%clk 0:00:06]} 36. Re1 {[%clk 0:00:04]}  Qf2 {[%clk 0:00:06]} 37. Rc1 {[%clk 0:00:04]}  Qd2 {[%clk 0:00:06]} 38. Rg1 {[%clk 0:00:04]}  Qxc2 {[%clk 0:00:07]} 39. h4 {[%clk 0:00:04]}  Qxb2 {[%clk 0:00:07]} 40. h5 {[%clk 0:00:05]}  Qxa2 {[%clk 0:00:08]} 41. hxg6 {[%clk 0:00:05]}  hxg6 {[%clk 0:00:09]} 42. g4 {[%clk 0:00:05]}  Qc2 {[%clk 0:00:09]} 43. g5 {[%clk 0:00:05]}  Qxc3 {[%clk 0:00:09]} 44. Rg3 {[%clk 0:00:05]}  Qe1+ {[%clk 0:00:08]} 45. Kg2 {[%clk 0:00:06]}  Qxg3+ {[%clk 0:00:08]} 46. Kh1 {[%clk 0:00:06]}  a5 {[%clk 0:00:09]} 1/2-1/2

[Event "December 5 Late 2023"]
[Site "https://www.chess.com"]
[Date "2023.12.05"]
[Round "11"]
[White "Apoorv Kamble"]
[Black "Sanchez Alvares, Kelvin Antonio"]
[Result "1-0"]
[Board "33"]
[TimeControl "180+1"]
[WhiteFideId "25683012"]
[BlackFideId "3906680"]
[WhiteElo "2674"]
[BlackElo "2540"]
[WhiteTeam "IND"]
[BlackTeam "VEN"]
[WhiteClock "0:01:48"]
[BlackClock "0:00:00"]

1. e4 {[%clk 0:03:00]}  e5 {[%clk 0:02:54]} 2. Nf3 {[%clk 0:03:00]}  Nc6 {[%clk 0:02:49]} 3. Bc4 {[%clk 0:03:00]}  Bc5 {[%clk 0:02:49]} 4. c3 {[%clk 0:03:00]}  Nf6 {[%clk 0:02:48]} 5. d3 {[%clk 0:03:00]}  d6 {[%clk 0:02:46]} 6. Nbd2 {[%clk 0:03:01]}  a5 {[%clk 0:02:46]} 7. Bb3 {[%clk 0:03:01]}  h6 {[%clk 0:02:45]} 8. h3 {[%clk 0:03:02]}  Be6 {[%clk 0:02:45]} 9. Nf1 {[%clk 0:03:02]}  d5 {[%clk 0:02:45]} 10. Qe2 {[%clk 0:03:01]}  dxe4 {[%clk 0:02:33]} 11. dxe4 {[%clk 0:03:02]}  a4 {[%clk 0:02:31]} 12. Bxe6 {[%clk 0:03:02]}  fxe6 {[%clk 0:02:30]} 13. Ng3 {[%clk 0:03:03]}  O-O {[%clk 0:02:29]} 14. Qc4 {[%clk 0:03:03]}  Qe7 {[%clk 0:02:28]} 15. Nf5 {[%clk 0:03:02]}  Qf7 {[%clk 0:02:22]} 16. Nxh6+ {[%clk 0:02:59]}  gxh6 {[%clk 0:02:20]} 17. Qxc5 {[%clk 0:03:00]}  Nxe4 {[%clk 0:02:20]} 18. Qe3 {[%clk 0:03:00]}  Nd6 {[%clk 0:02:17]} 19. Qxh6 {[%clk 0:02:56]}  e4 {[%clk 0:02:16]} 20. Qg5+ {[%clk 0:02:56]}  Kh8 {[%clk 0:02:16]} 21. Qh4+ {[%clk 0:02:56]}  Kg8 {[%clk 0:02:13]} 22. Ng5 {[%clk 0:02:56]}  Qg6 {[%clk 0:02:13]} 23. O-O {[%clk 0:02:54]}  Ne5 {[%clk 0:02:09]} 24. Qg3 {[%clk 0:02:53]}  Nd3 {[%clk 0:02:03]} 25. Nxe6 {[%clk 0:02:48]}  Qxg3 {[%clk 0:01:59]} 26. fxg3 {[%clk 0:02:49]}  Rxf1+ {[%clk 0:01:52]} 27. Kxf1 {[%clk 0:02:50]}  c6 {[%clk 0:01:50]} 28. Nf4 {[%clk 0:02:43]}  Nc4 {[%clk 0:01:43]} 29. Ke2 {[%clk 0:02:22]}  Rd8 {[%clk 0:01:41]} 30. b3 {[%clk 0:02:17]}  Nce5 {[%clk 0:01:24]} 31. Be3 {[%clk 0:02:14]}  Nxf4+ {[%clk 0:01:18]} 32. Bxf4 {[%clk 0:02:12]}  Nd3 {[%clk 0:01:18]} 33. Ke3 {[%clk 0:02:03]}  axb3 {[%clk 0:01:18]} 34. axb3 {[%clk 0:02:02]}  Rd5 {[%clk 0:01:13]} 35. c4 {[%clk 0:01:58]}  Rd7 {[%clk 0:01:12]} 36. Ra8+ {[%clk 0:01:56]}  Kf7 {[%clk 0:01:11]} 37. Ra5 {[%clk 0:01:54]}  Ne1 {[%clk 0:01:04]} 38. Kxe4 {[%clk 0:01:53]}  Nxg2 {[%clk 0:01:04]} 39. h4 {[%clk 0:01:53]}  b6 {[%clk 0:00:59]} 40. Ra6 {[%clk 0:01:52]}  Re7+ {[%clk 0:00:56]} 41. Kf5 {[%clk 0:01:52]}  Rb7 {[%clk 0:00:55]} 42. h5 {[%clk 0:01:51]}  Ne1 {[%clk 0:00:51]} 43. h6 {[%clk 0:01:49]}  Nd3 {[%clk 0:00:00]} 44. Ra8 {[%clk 0:01:48]} 1-0

[Event "December 5 Late 2023"]
[Site "https://www.chess.com"]
[Date "2023.12.05"]
[Round "11"]
[White "Chaika, Vitalii"]
[Black "Golubev, Mikhail"]
[Result "1-0"]
[Board "42"]
[TimeControl "180+1"]
[WhiteFideId "14111802"]
[BlackFideId "14100983"]
[WhiteElo "2437"]
[BlackElo "2630"]
[WhiteTeam "UKR"]
[BlackTeam "UKR"]
[WhiteClock "0:00:47"]
[BlackClock "0:00:00"]

1. d4 {[%clk 0:03:00]}  Nf6 {[%clk 0:02:59]} 2. Bf4 {[%clk 0:03:01]}  d6 {[%clk 0:02:59]} 3. e3 {[%clk 0:03:02]}  Nbd7 {[%clk 0:02:59]} 4. Nf3 {[%clk 0:03:02]}  g6 {[%clk 0:02:59]} 5. h3 {[%clk 0:03:02]}  Bg7 {[%clk 0:02:59]} 6. Be2 {[%clk 0:03:03]}  O-O {[%clk 0:03:00]} 7. O-O {[%clk 0:03:03]}  b6 {[%clk 0:03:00]} 8. a4 {[%clk 0:03:03]}  a5 {[%clk 0:02:56]} 9. Na3 {[%clk 0:03:02]}  Bb7 {[%clk 0:02:55]} 10. Nb5 {[%clk 0:03:01]}  Ne4 {[%clk 0:02:51]} 11. c3 {[%clk 0:03:00]}  Ndf6 {[%clk 0:02:48]} 12. Qb3 {[%clk 0:02:55]}  Qd7 {[%clk 0:02:44]} 13. Bh2 {[%clk 0:02:53]}  g5 {[%clk 0:02:38]} 14. Qc4 {[%clk 0:02:29]}  c6 {[%clk 0:02:32]} 15. Na3 {[%clk 0:02:26]}  Ba6 {[%clk 0:02:32]} 16. Qxa6 {[%clk 0:02:16]}  Rxa6 {[%clk 0:02:33]} 17. Bxa6 {[%clk 0:02:16]}  h5 {[%clk 0:02:32]} 18. Be2 {[%clk 0:01:51]}  g4 {[%clk 0:02:27]} 19. hxg4 {[%clk 0:01:45]}  Nxg4 {[%clk 0:02:26]} 20. Nc4 {[%clk 0:01:39]}  Nxh2 {[%clk 0:02:17]} 21. Nxh2 {[%clk 0:01:37]}  d5 {[%clk 0:02:16]} 22. Ne5 {[%clk 0:01:30]}  Bxe5 {[%clk 0:02:14]} 23. dxe5 {[%clk 0:01:31]}  Qf5 {[%clk 0:02:05]} 24. f4 {[%clk 0:01:27]}  Ng3 {[%clk 0:01:46]} 25. Rf2 {[%clk 0:01:27]}  Qe4 {[%clk 0:01:35]} 26. Nf1 {[%clk 0:01:13]}  Nxf1 {[%clk 0:01:18]} 27. Kxf1 {[%clk 0:01:14]}  Qxe3 {[%clk 0:00:51]} 28. Bxh5 {[%clk 0:01:14]}  Kg7 {[%clk 0:00:34]} 29. Re1 {[%clk 0:00:58]}  Qd3+ {[%clk 0:00:28]} 30. Be2 {[%clk 0:00:57]}  Qe4 {[%clk 0:00:20]} 31. Bb5 {[%clk 0:00:48]}  Qg6 {[%clk 0:00:19]} 32. f5 {[%clk 0:00:48]}  Qh6 {[%clk 0:00:18]} 33. f6+ {[%clk 0:00:47]}  exf6 {[%clk 0:00:11]} 34. exf6+ {[%clk 0:00:47]}  Kh8 {[%clk 0:00:00]} 35. Bxc6 {[%clk 0:00:47]} 1-0

[Event "December 5 Late 2023"]
[Site "https://www.chess.com"]
[Date "2023.12.05"]
[Round "11"]
[White "Zhou, Qiyu"]
[Black "Micic, Aleksa"]
[Result "0-1"]
[Board "44"]
[TimeControl "180+1"]
[WhiteFideId "505161"]
[BlackFideId "989940"]
[WhiteElo "2453"]
[BlackElo "2394"]
[WhiteTeam "CAN"]
[BlackTeam "SRB"]
[WhiteClock "0:00:48"]
[BlackClock "0:00:31"]

1. e4 {[%clk 0:03:00]}  c5 {[%clk 0:02:58]} 2. Nf3 {[%clk 0:02:59]}  d6 {[%clk 0:02:57]} 3. d4 {[%clk 0:02:59]}  cxd4 {[%clk 0:02:57]} 4. Nxd4 {[%clk 0:03:00]}  Nf6 {[%clk 0:02:57]} 5. Nc3 {[%clk 0:02:59]}  g6 {[%clk 0:02:52]} 6. Be3 {[%clk 0:02:58]}  Bg7 {[%clk 0:02:49]} 7. f3 {[%clk 0:02:57]}  O-O {[%clk 0:02:50]} 8. Qd2 {[%clk 0:02:58]}  Nc6 {[%clk 0:02:51]} 9. O-O-O {[%clk 0:02:57]}  Bd7 {[%clk 0:02:50]} 10. g4 {[%clk 0:02:56]}  Rc8 {[%clk 0:02:51]} 11. h4 {[%clk 0:02:56]}  Ne5 {[%clk 0:02:51]} 12. h5 {[%clk 0:02:48]}  Qa5 {[%clk 0:02:47]} 13. Be2 {[%clk 0:02:27]}  Rxc3 {[%clk 0:01:19]} 14. Qxc3 {[%clk 0:02:26]}  Qxc3 {[%clk 0:01:19]} 15. bxc3 {[%clk 0:02:27]}  Rc8 {[%clk 0:01:19]} 16. Kb2 {[%clk 0:02:20]}  Be8 {[%clk 0:01:19]} 17. hxg6 {[%clk 0:02:19]}  hxg6 {[%clk 0:01:19]} 18. g5 {[%clk 0:02:15]}  Nfd7 {[%clk 0:01:19]} 19. Nb3 {[%clk 0:01:57]}  Nxf3 {[%clk 0:01:10]} 20. Bxf3 {[%clk 0:01:55]}  Rxc3 {[%clk 0:01:10]} 21. Bd4 {[%clk 0:01:46]}  Rxf3 {[%clk 0:01:08]} 22. Bxg7 {[%clk 0:01:44]}  Kxg7 {[%clk 0:01:09]} 23. Nd4 {[%clk 0:01:40]}  Rg3 {[%clk 0:01:08]} 24. Nb5 {[%clk 0:01:39]}  Ne5 {[%clk 0:01:03]} 25. Nc7 {[%clk 0:01:31]}  Bc6 {[%clk 0:01:01]} 26. Rhg1 {[%clk 0:01:18]}  Nc4+ {[%clk 0:01:00]} 27. Kb1 {[%clk 0:01:13]}  Re3 {[%clk 0:00:55]} 28. Rge1 {[%clk 0:01:13]}  Rxe1 {[%clk 0:00:54]} 29. Rxe1 {[%clk 0:01:14]}  Nd2+ {[%clk 0:00:54]} 30. Kb2 {[%clk 0:01:13]}  Nxe4 {[%clk 0:00:55]} 31. c4 {[%clk 0:01:12]}  e6 {[%clk 0:00:54]} 32. Ne8+ {[%clk 0:00:59]}  Bxe8 {[%clk 0:00:38]} 33. Rxe4 {[%clk 0:00:58]}  Bc6 {[%clk 0:00:38]} 34. Rd4 {[%clk 0:00:59]}  d5 {[%clk 0:00:38]} 35. cxd5 {[%clk 0:01:00]}  Bxd5 {[%clk 0:00:39]} 36. a4 {[%clk 0:00:59]}  f6 {[%clk 0:00:38]} 37. gxf6+ {[%clk 0:00:59]}  Kxf6 {[%clk 0:00:39]} 38. Kc3 {[%clk 0:01:00]}  Kf5 {[%clk 0:00:38]} 39. Kb4 {[%clk 0:01:00]}  g5 {[%clk 0:00:38]} 40. Kc5 {[%clk 0:00:58]}  g4 {[%clk 0:00:36]} 41. Rd3 {[%clk 0:00:57]}  Kf4 {[%clk 0:00:33]} 42. Rd4+ {[%clk 0:00:58]}  Be4 {[%clk 0:00:32]} 43. Rd8 {[%clk 0:00:57]}  g3 {[%clk 0:00:32]} 44. Rf8+ {[%clk 0:00:57]}  Bf5 {[%clk 0:00:32]} 45. Rg8 {[%clk 0:00:57]}  Bg4 {[%clk 0:00:32]} 46. Rf8+ {[%clk 0:00:56]}  Ke3 {[%clk 0:00:32]} 47. Rg8 {[%clk 0:00:56]}  Kf3 {[%clk 0:00:31]} 48. Rf8+ {[%clk 0:00:57]}  Bf5 {[%clk 0:00:32]} 49. Rg8 {[%clk 0:00:56]}  g2 {[%clk 0:00:32]} 50. Kd6 {[%clk 0:00:54]}  Kf2 {[%clk 0:00:31]} 51. Kc7 {[%clk 0:00:52]}  Be4 {[%clk 0:00:31]} 52. Rf8+ {[%clk 0:00:51]}  Bf3 {[%clk 0:00:30]} 53. Rg8 {[%clk 0:00:48]}  g1=Q {[%clk 0:00:31]} 0-1

[Event "December 5 Late 2023"]
[Site "https://www.chess.com"]
[Date "2023.12.05"]
[Round "11"]
[White "Arnold, Ken"]
[Black "Solon, Nathan"]
[Result "1-0"]
[Board "46"]
[TimeControl "180+1"]
[WhiteFideId "2056836"]
[BlackFideId "2017229"]
[WhiteElo "2447"]
[BlackElo "2663"]
[WhiteTeam "USA"]
[BlackTeam "USA"]
[WhiteClock "0:01:21"]
[BlackClock "0:01:10"]

1. d4 {[%clk 0:03:00]}  d5 {[%clk 0:02:59]} 2. c4 {[%clk 0:02:59]}  c6 {[%clk 0:03:00]} 3. cxd5 {[%clk 0:03:00]}  cxd5 {[%clk 0:03:01]} 4. Nc3 {[%clk 0:03:00]}  Nf6 {[%clk 0:03:01]} 5. Nf3 {[%clk 0:03:01]}  Nc6 {[%clk 0:03:01]} 6. Bf4 {[%clk 0:03:00]}  e6 {[%clk 0:02:59]} 7. e3 {[%clk 0:03:01]}  Be7 {[%clk 0:02:58]} 8. Bb5 {[%clk 0:03:00]}  Bd7 {[%clk 0:02:57]} 9. O-O {[%clk 0:03:00]}  O-O {[%clk 0:02:54]} 10. Qe2 {[%clk 0:03:00]}  Qa5 {[%clk 0:02:44]} 11. a3 {[%clk 0:02:58]}  Rfc8 {[%clk 0:02:43]} 12. h3 {[%clk 0:02:42]}  a6 {[%clk 0:02:38]} 13. Bd3 {[%clk 0:02:41]}  Qd8 {[%clk 0:02:33]} 14. Rac1 {[%clk 0:02:35]}  Be8 {[%clk 0:02:28]} 15. Ne5 {[%clk 0:02:35]}  Nxe5 {[%clk 0:02:17]} 16. Bxe5 {[%clk 0:02:36]}  Nd7 {[%clk 0:02:17]} 17. Bg3 {[%clk 0:02:28]}  Nb6 {[%clk 0:02:16]} 18. Rc2 {[%clk 0:02:24]}  Nc4 {[%clk 0:02:16]} 19. Rfc1 {[%clk 0:02:20]}  b5 {[%clk 0:02:16]} 20. e4 {[%clk 0:02:16]}  dxe4 {[%clk 0:02:12]} 21. Qxe4 {[%clk 0:02:12]}  g6 {[%clk 0:02:09]} 22. d5 {[%clk 0:02:08]}  exd5 {[%clk 0:01:52]} 23. Nxd5 {[%clk 0:02:01]}  Bg5 {[%clk 0:01:52]} 24. Bxc4 {[%clk 0:01:49]}  bxc4 {[%clk 0:01:35]} 25. f4 {[%clk 0:01:39]}  Bc6 {[%clk 0:01:22]} 26. Rd1 {[%clk 0:01:24]}  Bxd5 {[%clk 0:01:22]} 27. Rxd5 {[%clk 0:01:22]}  Qb6+ {[%clk 0:01:10]} 28. Bf2 {[%clk 0:01:21]} 1-0

[Event "December 5 Late 2023"]
[Site "https://www.chess.com"]
[Date "2023.12.05"]
[Round "11"]
[White "Argandona Riveiro, Inigo"]
[Black "Rangel, Daniel"]
[Result "1-0"]
[Board "48"]
[TimeControl "180+1"]
[WhiteFideId "2212072"]
[BlackFideId "2124475"]
[WhiteElo "2460"]
[BlackElo "2559"]
[WhiteTeam "ESP"]
[BlackTeam "BRA"]
[WhiteClock "0:00:53"]
[BlackClock "0:00:01"]

1. Nf3 {[%clk 0:03:00]}  Nf6 {[%clk 0:02:58]} 2. c4 {[%clk 0:03:01]}  e6 {[%clk 0:02:59]} 3. g3 {[%clk 0:03:01]}  d5 {[%clk 0:02:59]} 4. Bg2 {[%clk 0:03:02]}  Be7 {[%clk 0:02:59]} 5. d4 {[%clk 0:03:02]}  O-O {[%clk 0:02:59]} 6. Qc2 {[%clk 0:03:02]}  a5 {[%clk 0:02:59]} 7. Nbd2 {[%clk 0:03:02]}  c6 {[%clk 0:02:59]} 8. O-O {[%clk 0:03:01]}  b6 {[%clk 0:03:00]} 9. b3 {[%clk 0:03:01]}  Ba6 {[%clk 0:02:33]} 10. Rd1 {[%clk 0:02:58]}  b5 {[%clk 0:02:30]} 11. Ne5 {[%clk 0:02:55]}  Nfd7 {[%clk 0:02:24]} 12. e4 {[%clk 0:02:52]}  Nxe5 {[%clk 0:02:17]} 13. dxe5 {[%clk 0:02:52]}  d4 {[%clk 0:02:08]} 14. Bb2 {[%clk 0:02:36]}  c5 {[%clk 0:02:00]} 15. cxb5 {[%clk 0:02:35]}  Bxb5 {[%clk 0:02:01]} 16. Bf1 {[%clk 0:02:30]}  Bxf1 {[%clk 0:01:56]} 17. Kxf1 {[%clk 0:02:30]}  Nc6 {[%clk 0:01:56]} 18. Ba3 {[%clk 0:02:24]}  Nxe5 {[%clk 0:01:50]} 19. Rac1 {[%clk 0:02:11]}  Rc8 {[%clk 0:01:40]} 20. f4 {[%clk 0:02:06]}  Ng4 {[%clk 0:01:39]} 21. Nc4 {[%clk 0:02:03]}  f5 {[%clk 0:01:11]} 22. e5 {[%clk 0:02:03]}  Qd5 {[%clk 0:01:06]} 23. Qg2 {[%clk 0:02:03]}  Qxg2+ {[%clk 0:00:59]} 24. Kxg2 {[%clk 0:02:04]}  Rfd8 {[%clk 0:00:54]} 25. h3 {[%clk 0:01:51]}  Ne3+ {[%clk 0:00:42]} 26. Nxe3 {[%clk 0:01:44]}  dxe3 {[%clk 0:00:43]} 27. Kf3 {[%clk 0:01:43]}  Rd2 {[%clk 0:00:33]} 28. Rxd2 {[%clk 0:01:34]}  exd2 {[%clk 0:00:34]} 29. Rd1 {[%clk 0:01:34]}  c4 {[%clk 0:00:12]} 30. Bxe7 {[%clk 0:01:35]}  c3 {[%clk 0:00:12]} 31. Ba3 {[%clk 0:01:35]}  Rd8 {[%clk 0:00:10]} 32. Ke2 {[%clk 0:01:34]}  Kf7 {[%clk 0:00:04]} 33. g4 {[%clk 0:01:11]}  g6 {[%clk 0:00:04]} 34. g5 {[%clk 0:01:10]}  Rd5 {[%clk 0:00:04]} 35. h4 {[%clk 0:01:06]}  Ke8 {[%clk 0:00:04]} 36. Ke3 {[%clk 0:01:03]}  Kd7 {[%clk 0:00:04]} 37. Bc1 {[%clk 0:01:01]}  dxc1=Q+ {[%clk 0:00:02]} 38. Rxc1 {[%clk 0:01:02]}  Rc5 {[%clk 0:00:03]} 39. Kd4 {[%clk 0:01:00]}  Kc6 {[%clk 0:00:03]} 40. Rxc3 {[%clk 0:00:59]}  Rxc3 {[%clk 0:00:04]} 41. Kxc3 {[%clk 0:01:00]}  Kc5 {[%clk 0:00:04]} 42. a3 {[%clk 0:00:58]}  Kb5 {[%clk 0:00:04]} 43. b4 {[%clk 0:00:57]}  a4 {[%clk 0:00:04]} 44. Kd4 {[%clk 0:00:55]}  Kc6 {[%clk 0:00:04]} 45. Kc4 {[%clk 0:00:55]}  Kb6 {[%clk 0:00:01]} 46. b5 {[%clk 0:00:53]} 1-0

[Event "December 5 Late 2023"]
[Site "https://www.chess.com"]
[Date "2023.12.05"]
[Round "11"]
[White "yaguigor"]
[Black "Stojanovski, Sandi"]
[Result "0-1"]
[Board "49"]
[TimeControl "180+1"]
[BlackFideId "1403249"]
[WhiteElo "2419"]
[BlackElo "2525"]
[BlackTeam "DEN"]
[WhiteClock "0:00:00"]
[BlackClock "0:00:08"]

1. e4 {[%clk 0:03:00]}  d6 {[%clk 0:03:00]} 2. d4 {[%clk 0:02:59]}  Nf6 {[%clk 0:03:01]} 3. Nc3 {[%clk 0:02:59]}  g6 {[%clk 0:03:02]} 4. Nf3 {[%clk 0:02:57]}  Bg7 {[%clk 0:03:02]} 5. Be3 {[%clk 0:02:57]}  O-O {[%clk 0:03:03]} 6. Qd2 {[%clk 0:02:55]}  Bg4 {[%clk 0:03:02]} 7. Ng5 {[%clk 0:02:54]}  Nc6 {[%clk 0:03:00]} 8. h3 {[%clk 0:02:50]}  Bd7 {[%clk 0:02:58]} 9. d5 {[%clk 0:02:35]}  Nb8 {[%clk 0:02:57]} 10. Be2 {[%clk 0:02:30]}  c6 {[%clk 0:02:56]} 11. O-O {[%clk 0:02:27]}  cxd5 {[%clk 0:02:56]} 12. exd5 {[%clk 0:02:26]}  Na6 {[%clk 0:02:54]} 13. Nf3 {[%clk 0:02:13]}  Qa5 {[%clk 0:02:38]} 14. a3 {[%clk 0:02:04]}  Rfc8 {[%clk 0:02:37]} 15. Bd4 {[%clk 0:01:46]}  Qd8 {[%clk 0:02:05]} 16. Nb5 {[%clk 0:01:37]}  Nc5 {[%clk 0:01:55]} 17. c4 {[%clk 0:01:27]}  Bxb5 {[%clk 0:01:41]} 18. cxb5 {[%clk 0:01:27]}  Nb3 {[%clk 0:01:41]} 19. Qd3 {[%clk 0:01:16]}  Nxd4 {[%clk 0:01:15]} 20. Qxd4 {[%clk 0:01:09]}  Rc5 {[%clk 0:01:14]} 21. b4 {[%clk 0:00:47]}  Rxd5 {[%clk 0:01:05]} 22. Qc4 {[%clk 0:00:39]}  Rc8 {[%clk 0:01:03]} 23. Qb3 {[%clk 0:00:38]}  e6 {[%clk 0:00:54]} 24. Bc4 {[%clk 0:00:29]}  Rh5 {[%clk 0:00:53]} 25. Rac1 {[%clk 0:00:24]}  Nd5 {[%clk 0:00:34]} 26. Rcd1 {[%clk 0:00:18]}  Nb6 {[%clk 0:00:30]} 27. Be2 {[%clk 0:00:11]}  d5 {[%clk 0:00:29]} 28. a4 {[%clk 0:00:10]}  Qf6 {[%clk 0:00:28]} 29. Rc1 {[%clk 0:00:09]}  Nc4 {[%clk 0:00:13]} 30. Bxc4 {[%clk 0:00:07]}  dxc4 {[%clk 0:00:14]} 31. Rxc4 {[%clk 0:00:07]}  Rxc4 {[%clk 0:00:15]} 32. Qxc4 {[%clk 0:00:08]}  Qc3 {[%clk 0:00:13]} 33. Qe4 {[%clk 0:00:07]}  Rd5 {[%clk 0:00:11]} 34. h4 {[%clk 0:00:04]}  Bf6 {[%clk 0:00:11]} 35. h5 {[%clk 0:00:04]}  Kg7 {[%clk 0:00:11]} 36. Qf4 {[%clk 0:00:03]}  Rxh5 {[%clk 0:00:10]} 37. Qb8 {[%clk 0:00:03]}  Qxb4 {[%clk 0:00:10]} 38. Qxb7 {[%clk 0:00:02]}  Qg4 {[%clk 0:00:09]} 39. Rd1 {[%clk 0:00:02]}  Qf4 {[%clk 0:00:09]} 40. Rd7 {[%clk 0:00:02]}  Be5 {[%clk 0:00:08]} 41. Nxe5 {[%clk 0:00:00]}  Qh2+ {[%clk 0:00:08]} 0-1